bitfinex-derivatives/quotes_BTCF0:USTF0_20250117
["timestamp","ask_amount","ask_price","bid_price","bid_amount"]
[1737141604997,0.047404,105430.0,105420.0,0.3608]
[1737141606396,0.047404,105430.0,105420.0,0.4903752]
[1737141606597,0.047404,105430.0,105420.0,0.3608]
[1737141607493,0.047407,105420.0,105410.0,0.01022445]
[1737141607696,0.047407,105420.0,105400.0,0.33340685]
[1737141607697,0.047412,105410.0,105400.0,0.33340685]
[1737141608001,0.1769872,105410.0,105400.0,0.33340685]
[1737141608196,0.047412,105410.0,105400.0,0.33340685]
[1737141608400,0.047412,105410.0,105400.0,0.69420685]
[1737141608599,0.047412,105410.0,105400.0,0.69180742]
[1737141608897,0.1769872,105410.0,105400.0,0.69180742]
[1737141609305,0.1769872,105410.0,105400.0,0.3608]
[1737141609511,0.047412,105410.0,105400.0,0.3608]
[1737141609700,0.1769872,105410.0,105400.0,0.3608]
[1737141610005,0.047412,105410.0,105400.0,0.3608]
[1737141610499,0.1769872,105410.0,105400.0,0.3608]
[1737141610700,0.047416,105400.0,105390.0,0.3608]
[1737141610908,0.047421,105390.0,105380.0,0.3608]
[1737141611096,0.047425,105380.0,105370.0,0.72330742]
[1737141612401,0.1295752,105410.0,105370.0,0.84829907]
[1737141612609,0.047415,105410.0,105400.0,0.3608]
[1737141613099,0.1769902,105410.0,105400.0,0.3608]
[1737141613603,0.047415,105410.0,105400.0,0.3608]
[1737141615102,0.047409,105420.0,105400.0,0.85514393]
[1737141615310,0.047409,105420.0,105410.0,0.4903752]
[1737141615510,0.047404,105430.0,105410.0,0.5377852]
[1737141615699,0.047404,105430.0,105420.0,0.5821752]
[1737141615900,0.1769792,105430.0,105420.0,0.4226]
[1737141616416,0.047404,105430.0,105420.0,0.4226]
[1737141616804,0.047404,105430.0,105420.0,0.73995473]
[1737141618006,0.04882375,105440.0,105420.0,0.91693693]
[1737141618316,0.04882375,105440.0,105430.0,0.3608]
[1737141618713,0.04882375,105440.0,105430.0,0.4903752]
[1737141619020,0.6057622,105470.0,105430.0,0.4903752]
[1737141619021,0.047395,105450.0,105430.0,0.4903752]
[1737141619212,0.047398,105440.0,105430.0,0.3608]
[1737141619412,0.047398,105440.0,105430.0,0.7216]
[1737141621218,0.047398,105440.0,105430.0,0.8511752]
[1737141621416,0.047398,105440.0,105430.0,0.7216]
[1737141621618,0.047398,105440.0,105430.0,0.7519]
[1737141621824,0.047396,105450.0,105430.0,0.799303]
[1737141622019,0.047396,105450.0,105440.0,0.3608]
[1737141623121,0.3977,105470.0,105440.0,0.5377732]
[1737141623316,0.094785,105460.0,105450.0,0.3608]
[1737141623714,0.047392,105460.0,105450.0,0.3608]
[1737141623927,0.047392,105460.0,105450.0,0.4903752]
[1737141624217,0.047392,105460.0,105450.0,0.3939]
[1737141625021,0.1769672,105460.0,105450.0,0.3608]
[1737141625219,0.047394,105450.0,105440.0,0.3608]
[1737141625918,0.047394,105450.0,105440.0,0.3939]
[1737141626923,0.047394,105450.0,105440.0,0.5234752]
[1737141627521,0.047394,105450.0,105440.0,0.3939]
[1737141628021,0.047394,105450.0,105440.0,0.5234752]
[1737141628925,0.492474,105470.0,105440.0,0.5234752]
[1737141628926,0.047392,105460.0,105440.0,0.5234752]
[1737141629224,0.047392,105460.0,105450.0,0.3608]
[1737141630128,0.1769672,105460.0,105450.0,0.3608]
[1737141630318,0.047392,105460.0,105450.0,0.3608]
[1737141632729,0.1769672,105460.0,105450.0,0.3608]
[1737141633129,0.047392,105460.0,105450.0,0.3608]
[1737141633828,0.047392,105460.0,105450.0,0.35080241]
[1737141637126,0.1769672,105460.0,105450.0,0.35080241]
[1737141637529,0.2411672,105460.0,105450.0,0.35080241]
[1737141638035,0.111592,105460.0,105450.0,0.35080241]
[1737141639434,0.111592,105460.0,105440.0,0.408197]
[1737141639435,0.047394,105450.0,105440.0,0.3608]
[1737141639633,0.1769692,105450.0,105440.0,0.3608]
[1737141639934,0.2082692,105450.0,105440.0,0.3608]
[1737141640135,0.047398,105440.0,105430.0,0.64937917]
[1737141640441,0.047398,105440.0,105430.0,0.63973135]
[1737141641233,0.047398,105440.0,105430.0,0.3608]
[1737141641929,0.047398,105440.0,105430.0,0.7216]
[1737141642334,0.047398,105440.0,105430.0,1.00053135]
[1737141643040,0.047398,105440.0,105430.0,1.13010655]
[1737141643236,0.047398,105440.0,105430.0,1.00053135]
[1737141643429,0.637398,105440.0,105430.0,1.13010655]
[1737141643938,0.637398,105440.0,105430.0,1.51714968]
[1737141644440,0.637398,105440.0,105430.0,1.38757448]
[1737141645339,0.637398,105440.0,105430.0,1.51714968]
[1737141645340,0.047398,105440.0,105430.0,1.51714968]
[1737141646232,0.047398,105440.0,105430.0,1.38757448]
[1737141647940,0.047398,105440.0,105430.0,1.51714968]
[1737141648537,0.668696,105450.0,105430.0,1.65196848]
[1737141648737,0.047392,105460.0,105440.0,0.5224752]
[1737141648941,0.047392,105460.0,105450.0,0.4903752]
[1737141649136,0.047392,105460.0,105450.0,0.3922]
[1737141649642,0.047392,105460.0,105450.0,1.14567449]
[1737141650636,0.13366953,105460.0,105450.0,1.02799696]
[1737141651038,0.047392,105460.0,105450.0,1.02799696]
[1737141651440,0.13366953,105460.0,105450.0,1.02799696]
[1737141651645,0.047392,105460.0,105450.0,1.02799696]
[1737141652335,0.17685937,105460.0,105450.0,1.02799696]
[1737141653234,0.047392,105460.0,105450.0,1.02799696]
[1737141655240,0.047392,105460.0,105450.0,0.69214437]
[1737141656440,0.047392,105460.0,105450.0,1.02799696]
[1737141657042,0.0369,105470.0,105450.0,1.15746433]
[1737141657248,0.047389,105460.0,105450.0,1.11148996]
[1737141657653,0.084287,105470.0,105450.0,1.11148996]
[1737141657844,0.084287,105470.0,105460.0,0.038]
[1737141658153,0.084287,105470.0,105460.0,0.52826737]
[1737141658551,0.084287,105470.0,105460.0,0.56546737]
[1737141658854,0.084285,105470.0,105460.0,0.61285637]
[1737141659050,0.084285,105470.0,105460.0,0.89681174]
[1737141659243,0.084285,105470.0,105460.0,0.94420074]
[1737141659244,0.0369,105470.0,105460.0,0.94420074]
[1737141659755,0.09619086,105480.0,105460.0,0.94420074]
[1737141660050,0.09619086,105480.0,105470.0,0.49026737]
[1737141660347,0.03574315,105490.0,105470.0,0.49026737]
[1737141660348,4.315e-05,105490.0,105470.0,0.49026737]
[1737141660654,0.04741915,105490.0,105480.0,0.49026737]
[1737141660953,0.04741915,105490.0,105480.0,0.52596737]
[1737141661145,4.315e-05,105490.0,105480.0,0.57334737]
[1737141661463,0.047371,105510.0,105490.0,0.047376]
[1737141661748,0.04878829,105520.0,105500.0,0.97473737]
[1737141661948,0.047366,105520.0,105510.0,0.52596737]
[1737141662142,0.047366,105520.0,105510.0,0.3608]
[1737141662344,0.047367,105510.0,105500.0,0.4371]
[1737141663054,0.95959553,105520.0,105490.0,0.49026737]
[1737141663243,0.38606168,105510.0,105490.0,0.3608]
[1737141663549,0.0748,105500.0,105490.0,0.3608]
[1737141663748,0.047371,105500.0,105490.0,2.45912442]
[1737141664256,0.047371,105500.0,105490.0,1.83815087]
[1737141664457,0.36077258,105520.0,105490.0,1.83815087]
[1737141664656,0.49023995,105520.0,105500.0,0.3608]
[1737141664852,0.047366,105510.0,105500.0,0.3608]
[1737141665453,0.047371,105500.0,105490.0,1.7169235]
[1737141665654,0.086671,105500.0,105490.0,1.7156835]
[1737141666051,0.086671,105500.0,105490.0,0.75579683]
[1737141666456,0.086671,105500.0,105490.0,0.8782642]
[1737141666752,0.047371,105500.0,105490.0,1.70864784]
[1737141667646,0.047371,105500.0,105490.0,1.32065101]
[1737141669253,0.17683837,105500.0,105490.0,2.32962139]
[1737141669445,0.57653437,105510.0,105490.0,2.32962139]
[1737141669650,0.57653437,105510.0,105490.0,1.32065101]
[1737141669651,0.047371,105500.0,105490.0,1.32065101]
[1737141670248,0.082571,105500.0,105490.0,1.32065101]
[1737141670645,0.21203837,105500.0,105490.0,1.65460703]
[1737141670854,0.21203837,105500.0,105490.0,1.29380703]
[1737141671154,0.57283837,105500.0,105490.0,1.29380703]
[1737141671360,0.57283837,105500.0,105490.0,1.29351858]
[1737141671564,0.57283837,105500.0,105490.0,0.86446058]
[1737141671565,0.52964193,105500.0,105490.0,0.86446058]
[1737141671855,0.52964193,105500.0,105490.0,0.09487397]
[1737141672360,0.82964193,105500.0,105490.0,0.09487397]
[1737141672759,0.82964193,105500.0,105480.0,0.22281476]
[1737141672964,0.53004693,105490.0,105480.0,0.22281476]
[1737141673263,0.61631786,105490.0,105480.0,0.22281476]
[1737141674168,0.61631786,105490.0,105480.0,0.20997304]
[1737141674867,0.53004693,105490.0,105480.0,0.20997304]
[1737141676065,0.53004693,105490.0,105480.0,0.18538331]
[1737141676266,0.16924693,105490.0,105480.0,0.18538331]
[1737141677859,0.16924693,105490.0,105480.0,0.63931845]
[1737141678062,0.16924693,105490.0,105480.0,0.68669845]
[1737141678063,0.047376,105490.0,105480.0,0.68669845]
[1737141678260,0.047376,105490.0,105480.0,0.79609845]
[1737141678856,0.047376,105490.0,105480.0,0.51758]
[1737141679057,0.16884193,105500.0,105480.0,0.4702]
[1737141679257,0.16884193,105500.0,105490.0,0.3608]
[1737141679258,0.047371,105500.0,105490.0,0.3608]
[1737141679457,0.047371,105500.0,105490.0,0.44707093]
[1737141679660,0.047371,105500.0,105490.0,0.3608]
[1737141682068,0.047367,105520.0,105490.0,0.44707093]
[1737141682263,0.08628135,105530.0,105510.0,0.80787093]
[1737141682264,0.00142235,105530.0,105510.0,0.80787093]
[1737141682463,0.04878035,105530.0,105520.0,0.57947093]
[1737141682665,0.00142235,105530.0,105520.0,0.62683293]
[1737141683060,0.13362593,105540.0,105520.0,0.540562]
[1737141683355,0.13362593,105540.0,105530.0,0.408158]
[1737141683561,0.047355,105540.0,105530.0,0.408158]
[1737141683756,0.047351,105550.0,105540.0,0.047353]
[1737141683975,0.13362193,105550.0,105540.0,0.408153]
[1737141684468,4.316e-05,105590.0,105560.0,0.047344]
[1737141684771,0.13364409,105590.0,105580.0,0.408135]
[1737141685067,0.13364409,105590.0,105580.0,0.49440593]
[1737141685068,0.04737316,105590.0,105580.0,0.49440593]
[1737141685568,0.04737316,105590.0,105580.0,0.3608]
[1737141686365,0.5845587,105610.0,105580.0,0.4899087]
[1737141686366,0.1291087,105610.0,105580.0,0.4899087]
[1737141686561,0.1291087,105610.0,105590.0,0.3608]
[1737141686562,0.1764337,105610.0,105590.0,0.3608]
[1737141686757,0.1764347,105600.0,105590.0,0.3608]
[1737141687067,0.047326,105600.0,105590.0,0.3608]
[1737141687266,0.1764347,105600.0,105590.0,0.3608]
[1737141687467,0.04733,105590.0,105580.0,0.86063088]
[1737141687760,0.5372387,105590.0,105580.0,0.27576988]
[1737141688069,0.5372387,105590.0,105580.0,0.27728224]
[1737141688269,0.5372387,105590.0,105580.0,2.4e-07]
[1737141689064,1.1272387,105590.0,105580.0,2.4e-07]
[1737141689361,0.5372387,105590.0,105580.0,2.4e-07]
[1737141689571,0.047335,105580.0,105570.0,0.16638039]
[1737141689771,0.5372437,105580.0,105570.0,0.16933948]
[1737141689973,0.047339,105570.0,105550.0,0.0582]
[1737141690168,0.5372487,105560.0,105540.0,0.05622132]
[1737141690359,0.1764527,105550.0,105540.0,0.05622132]
[1737141690560,0.047344,105550.0,105540.0,0.00142132]
[1737141692068,0.047344,105550.0,105540.0,0.36222132]
[1737141692376,0.047342,105560.0,105540.0,0.49133002]
[1737141692674,0.04734,105570.0,105550.0,0.4899087]
[1737141692868,0.04734,105570.0,105560.0,0.0578]
[1737141693468,0.04734,105570.0,105560.0,0.4186]
[1737141693778,0.04734,105570.0,105560.0,0.5477087]
[1737141694077,0.04875656,105580.0,105560.0,0.6552497]
[1737141694269,0.04875656,105580.0,105570.0,0.3608]
[1737141694877,0.047334,105580.0,105570.0,0.3608]
[1737141695268,0.1764427,105580.0,105570.0,0.3608]
[1737141695666,0.047336,105570.0,105560.0,0.4186]
[1737141695866,0.047336,105570.0,105550.0,0.69325278]
[1737141695867,0.047341,105560.0,105550.0,0.69325278]
[1737141696479,0.047341,105560.0,105550.0,0.3608]
[1737141696774,0.047341,105560.0,105550.0,0.4899087]
[1737141696981,0.047338,105570.0,105550.0,0.5372537]
[1737141697181,0.047338,105570.0,105560.0,0.1291087]
[1737141697478,0.047338,105570.0,105560.0,0.4899087]
[1737141698066,0.047332,105580.0,105560.0,0.5372457]
[1737141698270,0.047332,105580.0,105570.0,0.4899087]
[1737141698477,0.047332,105580.0,105570.0,0.3608]
[1737141698878,0.5372347,105600.0,105570.0,0.3608]
[1737141699174,0.047332,105580.0,105570.0,0.3608]
[1737141699579,0.7109287,105610.0,105570.0,0.5476087]
[1737141699777,0.047329,105590.0,105580.0,0.3608]
[1737141700783,0.047326,105590.0,105580.0,0.3608]
[1737141701081,0.047331,105580.0,105570.0,0.4749]
[1737141701877,0.047331,105580.0,105570.0,0.47785864]
[1737141702382,0.047331,105580.0,105570.0,0.36375864]
[1737141702785,0.1764397,105580.0,105570.0,0.3608]
[1737141702980,0.047335,105570.0,105560.0,0.3608]
[1737141703180,0.047335,105570.0,105560.0,0.36375889]
[1737141704684,0.047335,105570.0,105560.0,0.49286759]
[1737141705390,0.047327,105590.0,105560.0,0.54020759]
[1737141705686,0.047333,105580.0,105570.0,0.4899087]
[1737141705887,0.047333,105580.0,105570.0,0.49286759]
[1737141706685,0.047322,105600.0,105570.0,0.54020259]
[1737141706880,0.047329,105590.0,105580.0,0.4899087]
[1737141707087,0.047329,105590.0,105580.0,0.55076759]
[1737141708195,0.047323,105600.0,105580.0,0.92425725]
[1737141708388,0.047323,105600.0,105590.0,0.4899087]
[1737141708690,0.047323,105600.0,105590.0,0.49286759]
[1737141709190,0.047323,105600.0,105590.0,0.49286666]
[1737141709891,0.047323,105600.0,105590.0,0.86635632]
[1737141710088,0.047323,105600.0,105590.0,0.73724762]
[1737141710390,0.047323,105600.0,105590.0,0.86635632]
[1737141710890,0.047323,105600.0,105590.0,1.1988091]
[1737141712794,0.047323,105600.0,105590.0,1.06674244]
[1737141712990,0.047323,105600.0,105590.0,0.70890046]
[1737141713191,0.1764317,105600.0,105590.0,0.70890046]
[1737141713397,0.2348317,105600.0,105590.0,0.61396246]
[1737141713587,0.2348317,105600.0,105590.0,0.43927446]
[1737141713992,0.047323,105600.0,105590.0,0.43927446]
[1737141714194,0.047323,105600.0,105590.0,0.80007446]
[1737141714500,0.1764317,105600.0,105590.0,0.10682168]
[1737141714696,0.9663404,105600.0,105580.0,0.33245278]
[1737141714908,0.1764357,105590.0,105580.0,8.5e-07]
[1737141715300,0.047327,105590.0,105580.0,0.36080085]
[1737141715504,0.047327,105590.0,105580.0,8.5e-07]
[1737141715703,0.047327,105590.0,105580.0,0.36080085]
[1737141715896,0.047327,105590.0,105580.0,0.5729262]
[1737141716091,0.047323,105600.0,105590.0,0.047326]
[1737141716403,0.0414211,105620.0,105590.0,0.6560347]
[1737141716704,0.04732,105610.0,105600.0,0.408121]
[1737141716900,0.04732,105610.0,105600.0,0.3608]
[1737141717303,0.047322,105600.0,105590.0,0.526925]
[1737141717807,0.047318,105610.0,105590.0,0.6560317]
[1737141718101,0.0414211,105620.0,105600.0,0.3608]
[1737141718305,0.0887341,105620.0,105610.0,0.0604]
[1737141718603,0.2178428,105620.0,105610.0,0.0604]
[1737141719200,0.0887341,105620.0,105610.0,0.3608]
[1737141719399,0.1291087,105630.0,105620.0,0.0055396]
[1737141719604,0.1291087,105630.0,105620.0,0.0455396]
[1737141719605,0.5372177,105630.0,105620.0,0.0455396]
[1737141721212,0.408109,105630.0,105620.0,0.0455396]
[1737141721505,0.5372177,105630.0,105620.0,0.0455396]
[1737141722402,0.5372177,105630.0,105620.0,0.02425054]
[1737141722403,0.408109,105630.0,105620.0,0.02425054]
[1737141722603,0.5372177,105630.0,105620.0,0.02425054]
[1737141722808,0.1764177,105630.0,105620.0,0.02425054]
[1737141725306,0.5372177,105630.0,105620.0,0.02425054]
[1737141725502,0.5372177,105630.0,105620.0,5.8e-07]
[1737141725503,0.8372177,105630.0,105620.0,5.8e-07]
[1737141725812,0.047318,105610.0,105600.0,0.23061547]
[1737141726014,0.047331,105580.0,105570.0,0.39027321]
[1737141726208,0.5372397,105580.0,105570.0,0.38885237]
[1737141726815,0.1764397,105580.0,105570.0,0.38885237]
[1737141727015,0.408131,105580.0,105570.0,0.38885237]
[1737141727323,0.04734,105560.0,105550.0,0.3608]
[1737141727616,0.047345,105550.0,105540.0,0.50252647]
[1737141727815,0.1764537,105550.0,105540.0,0.5054858]
[1737141728019,0.047345,105550.0,105540.0,0.5054858]
[1737141728211,0.047345,105550.0,105540.0,0.51022073]
[1737141728406,0.1764537,105550.0,105540.0,0.51022073]
[1737141728610,0.1764537,105550.0,105540.0,0.46287273]
[1737141730013,0.1764537,105550.0,105540.0,0.00769426]
[1737141730216,0.047345,105550.0,105540.0,0.36849426]
[1737141730420,0.047345,105550.0,105540.0,0.70667303]
[1737141730614,0.047345,105550.0,105540.0,0.88313073]
[1737141730811,0.047341,105560.0,105540.0,0.88313073]
[1737141731119,0.047341,105560.0,105550.0,0.4242]
[1737141731314,0.047341,105560.0,105550.0,0.42715899]
[1737141732010,0.047336,105570.0,105550.0,0.60361169]
[1737141732210,0.047336,105570.0,105560.0,0.6515487]
[1737141732416,0.047336,105570.0,105560.0,0.47805899]
[1737141732915,0.047336,105570.0,105560.0,0.60716769]
[1737141733115,0.047336,105570.0,105560.0,0.47805899]
[1737141733318,0.047336,105570.0,105560.0,0.65450769]
[1737141733511,0.04875441,105580.0,105560.0,0.52539899]
[1737141733816,0.047335,105570.0,105560.0,0.81177342]
[1737141734319,0.1764437,105570.0,105560.0,0.45570744]
[1737141734917,0.5372437,105570.0,105560.0,0.34140744]
[1737141735119,0.5967437,105570.0,105560.0,0.33371443]
[1737141735424,0.5967437,105570.0,105560.0,0.00295938]
[1737141735628,0.5967437,105570.0,105540.0,0.45088593]
[1737141735629,0.047344,105550.0,105540.0,0.45088593]
[1737141735821,0.5372527,105550.0,105540.0,0.45384558]
[1737141736122,0.408144,105550.0,105540.0,0.33674558]
[1737141736511,0.047344,105550.0,105540.0,0.69754558]
[1737141736710,0.047344,105550.0,105540.0,0.00295965]
[1737141736919,0.047344,105550.0,105540.0,0.13206835]
[1737141737119,0.047344,105550.0,105540.0,0.00295965]
[1737141737320,0.047344,105550.0,105540.0,0.0076948]
[1737141737822,0.047344,105550.0,105540.0,0.4976035]
[1737141738121,0.3608,105560.0,105540.0,0.4976035]
[1737141738122,0.094684,105560.0,105540.0,0.4976035]
[1737141738327,0.408136,105570.0,105550.0,0.0616]
[1737141738524,0.047344,105560.0,105550.0,0.42535965]
[1737141738718,0.047344,105560.0,105550.0,0.64796245]
[1737141738913,0.047344,105560.0,105550.0,0.6450028]
[1737141739118,0.047344,105560.0,105550.0,0.64796179]
[1737141739727,0.047344,105560.0,105550.0,0.70786179]
[1737141740518,0.1764527,105560.0,105550.0,0.64796179]
[1737141740723,0.047344,105560.0,105550.0,0.64796179]
[1737141741217,0.5372527,105560.0,105550.0,0.22556179]
[1737141741826,0.5372527,105560.0,105550.0,0.00295899]
[1737141742427,0.6663614,105560.0,105550.0,0.00295899]
[1737141742632,0.047349,105540.0,105530.0,0.5834028]
[1737141742832,0.047349,105540.0,105530.0,0.39001541]
[1737141743330,0.047349,105540.0,105530.0,0.34266241]
[1737141743528,0.047345,105550.0,105530.0,0.83257111]
[1737141743825,0.047345,105550.0,105540.0,0.3608]
[1737141744025,0.0575,105560.0,105540.0,0.3608]
[1737141744026,0.094684,105560.0,105540.0,0.41110861]
[1737141744226,0.047344,105550.0,105540.0,0.36375961]
[1737141744634,0.047344,105550.0,105540.0,0.00295961]
[1737141747028,0.5372527,105550.0,105540.0,0.00295961]
[1737141747232,0.5372527,105550.0,105540.0,6.1e-07]
[1737141747233,0.8372527,105550.0,105540.0,6.1e-07]
[1737141747424,0.047349,105540.0,105530.0,0.2226028]
[1737141747617,0.408149,105540.0,105530.0,0.2226028]
[1737141748033,0.047349,105540.0,105530.0,0.5834028]
[1737141748228,0.047349,105540.0,105530.0,0.7125115]
[1737141748435,0.047346,105550.0,105530.0,0.8849625]
[1737141748629,0.047349,105540.0,105530.0,0.8849625]
[1737141749429,0.047345,105550.0,105530.0,0.8849625]
[1737141749738,0.047345,105550.0,105540.0,0.5476087]
[1737141749924,0.047345,105550.0,105540.0,0.4185]
[1737141750126,0.50912,105560.0,105540.0,0.8175605]
[1737141750327,0.556463,105560.0,105550.0,0.36059077]
[1737141751233,0.047344,105550.0,105540.0,0.8175605]
[1737141752836,0.047344,105550.0,105540.0,0.7702115]
[1737141754336,0.528135,105570.0,105540.0,0.8175565]
[1737141754337,0.047341,105560.0,105540.0,0.8175565]
[1737141754536,0.06472141,105580.0,105550.0,0.5372527]
[1737141754736,0.04875641,105580.0,105570.0,0.48976843]
[1737141755227,0.00142141,105580.0,105570.0,0.66916843]
[1737141755432,0.047323,105600.0,105590.0,0.047326]
[1737141755635,0.047323,105600.0,105590.0,0.3608]
[1737141756233,0.04733,105590.0,105580.0,0.3608]
[1737141756736,0.04733,105590.0,105580.0,0.69458593]
[1737141757638,0.04733,105590.0,105580.0,0.82369463]
[1737141757838,0.04733,105590.0,105580.0,0.96691198]
[1737141758635,0.04733,105590.0,105580.0,1.09602068]
[1737141759234,0.04733,105590.0,105580.0,1.09897885]
[1737141760139,0.04733,105590.0,105580.0,0.71577173]
[1737141760341,0.10673806,105610.0,105580.0,0.76310055]
[1737141760342,0.047324,105600.0,105580.0,0.76310055]
[1737141760635,0.047324,105600.0,105590.0,0.4899087]
[1737141760836,0.047324,105600.0,105590.0,0.49286669]
[1737141761031,0.047324,105600.0,105590.0,0.71577155]
[1737141761230,0.047324,105600.0,105590.0,0.58666285]
[1737141761738,0.047324,105600.0,105590.0,0.71577155]
[1737141761932,0.04874106,105610.0,105590.0,0.76309555]
[1737141762134,0.00142106,105610.0,105600.0,0.6596307]
[1737141762333,0.04873806,105610.0,105600.0,0.72608834]
[1737141762532,0.04873806,105610.0,105600.0,0.59697964]
[1737141762841,0.5963187,105630.0,105600.0,0.67876634]
[1737141762842,0.04731,105630.0,105600.0,0.67876634]
[1737141763043,0.04731,105630.0,105620.0,0.3608]
[1737141763228,0.04731,105630.0,105620.0,0.36375764]
[1737141763932,0.04731,105630.0,105620.0,0.00295764]
[1737141764135,0.5372187,105630.0,105620.0,0.00295764]
[1737141764449,0.047313,105620.0,105610.0,0.22290486]
[1737141764739,0.408113,105620.0,105610.0,0.22586254]
[1737141764939,0.047313,105620.0,105610.0,0.22586254]
[1737141765236,0.047313,105620.0,105610.0,0.00295768]
[1737141766244,0.047313,105620.0,105610.0,0.00295754]
[1737141766538,0.047313,105620.0,105610.0,0.36375754]
[1737141768638,0.047313,105620.0,105610.0,0.54018324]
[1737141769336,0.86992,105640.0,105610.0,0.54018324]
[1737141769537,0.047311,105630.0,105620.0,0.3608]
[1737141769836,0.047311,105630.0,105620.0,0.36375754]
[1737141773346,0.047311,105630.0,105620.0,0.49286624]
[1737141773546,0.047311,105630.0,105620.0,0.54017924]
[1737141774445,0.047305,105640.0,105620.0,0.5372217]
[1737141774645,0.047305,105640.0,105630.0,0.7175177]
[1737141774848,0.047305,105640.0,105630.0,0.588409]
[1737141775743,0.047305,105640.0,105630.0,0.7175177]
[1737141776342,0.047305,105640.0,105630.0,0.5411]
[1737141776541,0.1764137,105640.0,105630.0,0.5411]
[1737141776844,0.047305,105640.0,105630.0,0.4812]
[1737141777446,0.047305,105640.0,105630.0,0.12335697]
[1737141777951,0.047305,105640.0,105630.0,0.11835811]
[1737141778450,0.1764137,105640.0,105630.0,0.00295697]
[1737141779343,0.5372137,105640.0,105630.0,0.00295697]
[1737141779547,0.047309,105630.0,105610.0,0.22290486]
[1737141779754,0.5372217,105620.0,105610.0,0.22290486]
[1737141780143,0.8980217,105620.0,105610.0,0.22290486]
[1737141780453,0.047322,105600.0,105590.0,0.75523086]
[1737141780647,0.047319,105610.0,105600.0,0.04732]
[1737141780849,0.047315,105620.0,105610.0,0.047316]
[1737141781051,0.047315,105620.0,105610.0,0.3608]
[1737141781355,0.047318,105610.0,105600.0,0.46802]
[1737141781544,0.13335834,105610.0,105600.0,0.47097759]
[1737141781856,0.047318,105610.0,105600.0,0.42365759]
[1737141782146,0.047318,105610.0,105600.0,0.64587217]
[1737141782351,0.047318,105610.0,105600.0,0.77923451]
[1737141782654,0.047318,105610.0,105600.0,0.69319417]
[1737141782854,0.047318,105610.0,105600.0,0.64587217]
[1737141783158,0.13335834,105610.0,105600.0,0.64587217]
[1737141783655,0.047318,105610.0,105600.0,0.64587217]
[1737141784046,0.17637802,105610.0,105600.0,0.64587217]
[1737141784448,0.17637802,105610.0,105600.0,0.64291458]
[1737141785052,0.047318,105610.0,105600.0,0.64291458]
[1737141785360,0.047313,105620.0,105610.0,0.047317]
[1737141785361,0.047314,105620.0,105610.0,0.047317]
[1737141785555,0.047314,105620.0,105610.0,0.3608]
[1737141786256,0.047314,105620.0,105610.0,1.00933809]
[1737141787561,0.047314,105620.0,105610.0,0.96202009]
[1737141789162,0.047314,105620.0,105610.0,1.00933809]
[1737141789458,0.12906002,105630.0,105610.0,1.13839811]
[1737141789459,0.047311,105630.0,105610.0,1.13839811]
[1737141789762,0.047311,105630.0,105620.0,0.4795]
[1737141789960,0.047311,105630.0,105620.0,0.526813]
[1737141790962,0.047311,105630.0,105620.0,1.46135497]
[1737141791262,0.59496302,105650.0,105630.0,0.047306]
[1737141791263,0.047303,105650.0,105630.0,0.047306]
[1737141791452,0.00642061,105660.0,105640.0,0.468504]
[1737141791657,0.0473,105650.0,105640.0,0.468504]
[1737141791856,0.0473,105650.0,105640.0,0.4212]
[1737141792058,0.17636002,105650.0,105640.0,0.4212]
[1737141792356,0.17636002,105650.0,105640.0,0.0604]
[1737141792551,0.17636002,105650.0,105640.0,0.66156009]
[1737141792764,0.0473,105650.0,105640.0,1.02236009]
[1737141792968,0.0473,105650.0,105640.0,1.06966409]
[1737141793270,0.05371761,105660.0,105650.0,0.0473]
[1737141793572,0.05371761,105660.0,105640.0,1.15142011]
[1737141793769,0.0473,105650.0,105640.0,1.06966209]
[1737141794169,0.0473,105650.0,105640.0,0.66156009]
[1737141794374,0.0473,105650.0,105640.0,1.02236009]
[1737141794677,0.0473,105650.0,105640.0,1.06966409]
[1737141795065,0.0473,105650.0,105640.0,1.02236009]
[1737141795772,0.17636002,105650.0,105640.0,1.02236009]
[1737141796279,0.17636002,105650.0,105640.0,0.66156009]
[1737141796472,0.17636002,105650.0,105640.0,0.60122009]
[1737141796671,0.53716002,105650.0,105640.0,0.60122009]
[1737141796873,0.96622004,105650.0,105640.0,0.24601362]
[1737141797073,0.83716002,105650.0,105640.0,0.24601362]
[1737141797372,0.047304,105640.0,105630.0,0.33332188]
[1737141797675,0.047309,105630.0,105620.0,0.22284748]
[1737141797873,0.53716902,105630.0,105620.0,0.22284748]
[1737141798672,0.047309,105630.0,105620.0,0.3608]
[1737141799077,0.047307,105640.0,105620.0,0.3608]
[1737141799277,0.53716702,105640.0,105630.0,0.047309]
[1737141799577,0.047309,105630.0,105620.0,0.63095948]
[1737141801771,0.047309,105630.0,105620.0,0.58364748]
[1737141801972,0.17636902,105630.0,105620.0,0.58364748]
[1737141802278,0.53716902,105630.0,105620.0,0.22284748]
[1737141803679,0.047311,105630.0,105610.0,0.8194235]
[1737141804076,0.047311,105630.0,105620.0,0.3608]
[1737141804277,0.22368402,105630.0,105610.0,0.69036348]
[1737141804477,0.047313,105620.0,105610.0,0.69036348]
[1737141804779,0.047309,105630.0,105620.0,0.22284748]
[1737141804967,0.12906002,105640.0,105620.0,0.63095848]
[1737141804968,0.047305,105640.0,105620.0,0.63095848]
[1737141805171,0.047309,105630.0,105620.0,0.63095848]
[1737141805367,0.047309,105630.0,105620.0,0.99175848]
[1737141805877,0.08599749,105640.0,105620.0,1.07775597]
[1737141805878,0.047305,105640.0,105620.0,1.07775597]
[1737141806080,0.047305,105640.0,105630.0,0.3608]
[1737141806380,0.047309,105630.0,105620.0,0.63095848]
[1737141806768,0.047309,105630.0,105620.0,0.69945848]
[1737141807381,0.047309,105630.0,105620.0,0.476611]
[1737141807880,0.047305,105640.0,105620.0,0.60991849]
[1737141808070,0.047305,105640.0,105630.0,0.3608]
[1737141808772,0.047305,105640.0,105630.0,0.58359168]
[1737141809071,0.52250148,105660.0,105630.0,0.66958917]
[1737141809375,0.0473,105650.0,105640.0,0.473003]
[1737141810478,0.00642061,105660.0,105640.0,0.51169749]
[1737141810781,0.05371661,105660.0,105650.0,0.49409749]
[1737141811078,0.05371661,105660.0,105650.0,0.4772]
[1737141811385,0.05371661,105660.0,105650.0,0.86696931]
[1737141811677,0.1397141,105660.0,105650.0,0.86696931]
[1737141812074,0.05371661,105660.0,105650.0,0.81966931]